Cogmind - Beta 15 @@@ ROGUE MODE // 2025.10.11 @ 18:51:42 Player: NQH Result: Destroyed by C-17 Slicer with Blade Saw Performance ------------- Evolutions (2) 1000 Regions Visited (6) 1200 Robots Destroyed (11) 55 Value Destroyed (159) 159 Prototype IDs (0) 0 Alien Tech Used (0) 0 Bonus (200) 200 TOTAL SCORE: 2614 Bonus ------- Pacifist 200 Cogmind --------- Core Integrity 0/550 Matter 233/300 Energy 94/100 System Corruption 0% Temperature Cool (0) Movement Core (50) Location -8/Materials Parts ------- > --- POWER (1) -------- (None) > --- PROPULSION (2) --- (None) > --- UTILITY (6) ------ Core Shielding > --- WEAPON (2) ------- (None) > --- INVENTORY (5) ---- (None) Peak State ------------ > --- POWER ------------ (None) > --- PROPULSION ------- Improved Hover Unit Improved Hover Unit > --- UTILITY ---------- Hardened Light Armor Plating > --- WEAPON ----------- Hammer > --- INVENTORY -------- Core Shielding [Rating: 7] Favorites ----------- Power None Propulsion Improved Hover Unit Hover Unit Improved Hover Unit Flight Unit Cesium-ion Thruster Utility Core Shielding Protection Core Shielding Weapon Hammer Impact Weapon Hammer Build | -11 -10 -9 -9 -9 -8 -8 ------- Run | Yrd Mat Mat Min Exi Min Mat Slots Evolved 4 | . . 2 . . . 2 Power . | . . . . . . . Propulsion . | . . . . . . . Utility 4 | . . 2 . . . 2 Weapon . | . . . . . . . Parts Attached 8 | . 2 . . . 2 4 Power . | . . . . . . . Engine . | . . . . . . . Core . | . . . . . . . Reactor . | . . . . . . . Propulsion 4 | . . . . . 1 3 Treads . | . . . . . . . Leg . | . . . . . . . Wheel . | . . . . . . . Hover 2 | . . . . . 1 1 Flight 2 | . . . . . . 2 Utility 3 | . 1 . . . 1 1 Device . | . . . . . . . Storage . | . . . . . . . Processor . | . . . . . . . Hackware . | . . . . . . . Protection 3 | . 1 . . . 1 1 Artifact . | . . . . . . . Weapon 1 | . 1 . . . . . Energy Gun . | . . . . . . . Energy Cannon . | . . . . . . . Ballistic Gun . | . . . . . . . Ballistic Cannon . | . . . . . . . Launcher . | . . . . . . . Special Weapon . | . . . . . . . Impact Weapon 1 | . 1 . . . . . Slashing Weapon . | . . . . . . . Piercing Weapon . | . . . . . . . Special Melee Weapon . | . . . . . . . Unidentified Prototypes . | . . . . . . . Parts Lost 5 | . . . . . . 5 Power . | . . . . . . . Propulsion 3 | . . . . . . 3 Utility 1 | . . . . . . 1 Weapon 1 | . . . . . . 1 Highest Loss Streak 5 | . . . . . . 5 To Critical Strikes . | . . . . . . . Average Backups . | . . . 1 1 1 1 Power . | . . . . . . . Propulsion . | . . . . . . . Utility . | . . . 1 1 1 1 Weapon . | . . . . . . . Tool/Special . | . . . . . . . Unused Backups . | . . . . . . . Power . | . . . . . . . Propulsion . | . . . . . . . Utility . | . . . . . . . Weapon . | . . . . . . . Tool/Special . | . . . . . . . Average Slot Usage (%) 19 | . 14 22 22 22 25 13 Hover 3 | . . . . . 7 7 Protection 8 | . 2 11 11 11 11 5 Impact Weapon 7 | . 11 11 11 11 7 . Peak Build Rating 7 | . 2 2 2 2 6 7 Average Rating 2 | . 1 2 2 2 4 3 On Entrance 1 | . . 2 2 2 2 4 Naked Turns 30 | . 7 . . . . 23 Heaviest Build 10 | . 3 3 3 3 7 10 Greatest Support 14 | 3 3 3 3 3 7 14 Greatest Overweight (x) 3 | . . . . . . 3 Average Overweight (x) . | . . . . . . . Largest Inventory Capacity 5 | 5 5 5 5 5 5 5 Average Capacity 5 | 5 5 5 5 5 5 5 Most Carried 2 | . . 1 1 1 2 2 Average Carried . | . . . 1 1 1 1 Final Capacity 5 | 5 5 5 5 5 5 5 Final Carried 2 | . . 1 1 1 2 . Class Distribution -------------------- 100% | Mutant Dominant Class ---------------- Mutant | -10/Materials Mutant | -9/Materials Mutant | -9/Mines Mutant | -9/Exiles Mutant | -8/Mines Mutant | -8/Materials Resources | -11 -10 -9 -9 -9 -8 -8 ----------- Run | Yrd Mat Mat Min Exi Min Mat Matter Collected 220 | 183 . 37 . . . . Remotely . | . . . . . . . Salvage Created 107 | . . . 28 . . 79 Parts 7 | . . . . . . 7 Haulers Intercepted 1 | . . . . . . 1 Recyclers Shooed . | . . . . . . . Parts Field Recycled . | . . . . . . . Retrieved Matter . | . . . . . . . Parts Self-Destructed . | . . . . . . . Prevented . | . . . . . . . Kills | -11 -10 -9 -9 -9 -8 -8 ------- Run | Yrd Mat Mat Min Exi Min Mat Combat Hostiles Destroyed 7 | . . . . . . 7 AOE 7 | . . . . . . 7 Classes Destroyed 7 | . . . 1 . . 6 Worker 1 | . . . . . . 1 Builder 1 | . . . . . . 1 Tunneler 1 | . . . 1 . . . Hauler 1 | . . . . . . 1 Swarmer 5 | . . . . . . 5 Cutter 1 | . . . . . . 1 Grunt 1 | . . . . . . 1 Best Kill Streak 10 | . . . 1 . . 10 Combat Bots Only 7 | . . . . . . 7 Max Kills in Single Turn 10 | . . . 1 . . 10 Gunslinging . | . . . . . . . Exploded 7 | . . . . . . 7 Melee . | . . . . . . . Uniques/NPCs Destroyed . | . . . . . . . Combat | -11 -10 -9 -9 -9 -8 -8 -------- Run | Yrd Mat Mat Min Exi Min Mat Hostile Shots Fired 89 | . . 1 1 . 24 63 Missed 25 | . . . . . 8 17 Hits 64 | . . 1 1 . 16 46 Melee 16 | . . . . . 1 15 Projectile 48 | . . 1 1 . 15 31 AOE 2 | . . . . . . 2 Critical Strikes 6 | . . . . . 1 5 Damage Taken 1113 | . . 11 11 . 240 851 Core 681 | . . 9 9 . 104 559 Absorbed by Shields . | . . . . . . . Redirected to Shielding 8 | . . 2 2 . . 4 Core Remaining (%) 89 | 100 100 . . . 69 . Volleys Fired . | . . . . . . . Largest . | . . . . . . . Hottest . | . . . . . . . Shots Fired . | . . . . . . . Gun . | . . . . . . . Cannon . | . . . . . . . Launcher . | . . . . . . . Special . | . . . . . . . Kinetic . | . . . . . . . Thermal . | . . . . . . . Explosive . | . . . . . . . Electromagnetic . | . . . . . . . Robot Hit Streak . | . . . . . . . Robot Miss Streak . | . . . . . . . Penetration Max . | . . . . . . . Secondary Targets . | . . . . . . . Shots Hit Robots 3 | . 1 . 1 . . 1 Core Hits 6 | . . . . . . 6 Critical Kills . | . . . . . . . Critical Parts Destroyed . | . . . . . . . Critical Strikes . | . . . . . . . Melee Attacks 7 | . 1 . 1 . 2 3 Impact 7 | . 1 . 1 . 2 3 Slashing . | . . . . . . . Piercing . | . . . . . . . Sneak Attacks 1 | . . . 1 . . . Combat Hostiles . | . . . . . . . Follow-up Attacks . | . . . . . . . Damage Inflicted 1518 | . 35 . 52 . . 1431 Guns . | . . . . . . . Cannons . | . . . . . . . Explosions 1394 | . . . . . . 1394 Melee 122 | . 35 . 52 . . 35 Ramming 2 | . . . . . . 2 Kinetic . | . . . . . . . Thermal 1394 | . . . . . . 1394 Explosive . | . . . . . . . Electromagnetic . | . . . . . . . Impact 122 | . 35 . 52 . . 35 Slashing . | . . . . . . . Piercing . | . . . . . . . Highest Corruption . | . . . . . . . Average Corruption . | . . . . . . . Corruption Purged . | . . . . . . . Corruption Blocked . | . . . . . . . Overload Shots . | . . . . . . . Overflow Damage 317 | . . . 12 . . 305 Projectiles . | . . . . . . . Explosions 305 | . . . . . . 305 Melee 12 | . . . 12 . . . Knockbacks . | . . . . . . . Impact . | . . . . . . . Kinetic . | . . . . . . . Secondary . | . . . . . . . Self-Inflicted Damage 212 | . . . . . . 212 Shots 2 | . . . . . . 2 Rammed 2 | . . . . . . 2 Targets Rammed 2 | . . . . . . 2 Kicked . | . . . . . . . Crushed . | . . . . . . . Highest Temperature . | . . . . . . . Average Temperature . | . . . . . . . Received Heat Transfer 222 | . . 6 . . 135 81 Siege Activations . | . . . . . . . Martial Activations . | . . . . . . . Shielding Activations . | . . . . . . . Robots Disrupted . | . . . . . . . Combat Hostiles . | . . . . . . . Robots Corrupted 1 | . . . 1 . . . Combat Hostiles . | . . . . . . . Parts Fried 3 | . . . 3 . . . Impact Corruptions 1 | . . . 1 . . . Robots Melted . | . . . . . . . Combat Hostiles . | . . . . . . . Parts Melted 3 | . . . . . . 3 Heat Transferred 850 | . . . . . . 850 Parts Sabotaged . | . . . . . . . Parts Stolen . | . . . . . . . Parts Stripped . | . . . . . . . Power Chain Reactions . | . . . . . . . Alert | -11 -10 -9 -9 -9 -8 -8 ------- Run | Yrd Mat Mat Min Exi Min Mat Maximum Alert Level 1 | . . . . . . 1 Low Security (%) 88 | 100 100 100 100 . 100 55 Level 1 11 | . . . . . . 44 Level 2 . | . . . . . . . Level 3 . | . . . . . . . Level 4 . | . . . . . . . Level 5 . | . . . . . . . High Security . | . . . . . . . Max Security . | . . . . . . . Peak Influence 243 | . . 15 5 . . 243 Initial . | . . . . . . . Average 27 | . . 5 1 . . 104 Influence Increases 288 | . . 15 5 . . 268 Destroy 0b10 Robot/C 140 | . . . . . . 140 Destroy 0b10 Robot/NC 20 | . . . 5 . . 15 Destroy Leader 22 | . . . . . . 22 Disable Machine 45 | . . . . . . 45 Destroy Structure 31 | . . . . . . 31 Partial Spotted 15 | . . 15 . . . . Lose Combat Pursuer 15 | . . . . . . 15 Influence Decreases 60 | . . 15 5 . . 40 Time Decay 40 | . . 15 5 . . 20 Lost Part 20 | . . . . . . 20 Squads Dispatched 2 | . . . . . . 2 Investigation . | . . . . . . . Extermination . | . . . . . . . Reinforcement 2 | . . . . . . 2 Assault . | . . . . . . . Garrison . | . . . . . . . Intercept . | . . . . . . . Searches Triggered . | . . . . . . . Construction Impeded . | . . . . . . . Haulers Reinforced . | . . . . . . . Active Scanning Responses . | . . . . . . . Cargo Convoy Interrupts . | . . . . . . . Stealth | -11 -10 -9 -9 -9 -8 -8 --------- Run | Yrd Mat Mat Min Exi Min Mat Distress Signals 2 | . . 1 . . . 1 Communications Jammed . | . . . . . . . Distress Signals . | . . . . . . . Times Spotted 29 | . 2 3 3 . 4 17 Peak Tracking Total 16 | . 2 3 3 . 4 16 Tactical Retreats 1 | . . . . . . 1 Traps | -11 -10 -9 -9 -9 -8 -8 ------- Run | Yrd Mat Mat Min Exi Min Mat Traps Triggered . | . . . . . . . Indirectly . | . . . . . . . Trap Hack Attempts . | . . . . . . . Triggered . | . . . . . . . Disarmed . | . . . . . . . Reprogrammed . | . . . . . . . Reused . | . . . . . . . Traps Extracted . | . . . . . . . Installed . | . . . . . . . Triggered . | . . . . . . . Machines | -11 -10 -9 -9 -9 -8 -8 ---------- Run | Yrd Mat Mat Min Exi Min Mat Machines Disabled 3 | . . . . . . 3 Max in Single Turn 3 | . . . . . . 3 Machines Repaired . | . . . . . . . Machines Dismantled . | . . . . . . . Machines Sabotaged . | . . . . . . . Overloaded Fab Kills . | . . . . . . . Hacking | -11 -10 -9 -9 -9 -8 -8 --------- Run | Yrd Mat Mat Min Exi Min Mat Machines Accessed . | . . . . . . . Terminals . | . . . . . . . Fabricators . | . . . . . . . Repair Stations . | . . . . . . . Recycling Units . | . . . . . . . Scanalyzers . | . . . . . . . Garrison Access . | . . . . . . . Total Hacks . | . . . . . . . Successful . | . . . . . . . Failed . | . . . . . . . Catastrophic . | . . . . . . . Database Lockouts . | . . . . . . . Manual . | . . . . . . . Terminals . | . . . . . . . Fabricators . | . . . . . . . Repair Stations . | . . . . . . . Recycling Units . | . . . . . . . Scanalyzers . | . . . . . . . Garrison Access . | . . . . . . . Terminal Hacks . | . . . . . . . Fabricator Hacks . | . . . . . . . Repair Station Hacks . | . . . . . . . Recycling Unit Hacks . | . . . . . . . Scanalyzer . | . . . . . . . Garrison Access Hacks . | . . . . . . . Unauthorized Hacks . | . . . . . . . Terminals . | . . . . . . . Fabricators . | . . . . . . . Repair Stations . | . . . . . . . Recycling Units . | . . . . . . . Scanalyzers . | . . . . . . . Garrison Access . | . . . . . . . Data Cores Recovered . | . . . . . . . Used . | . . . . . . . Hacking Detections . | . . . . . . . Full Trace Events . | . . . . . . . Feedback Events . | . . . . . . . Feedback Blocked . | . . . . . . . Robot Schematics Acquired . | . . . . . . . Robots Built . | . . . . . . . Authchips . | . . . . . . . Time . | . . . . . . . Total Robot Build Rating . | . . . . . . . Part Schematics Acquired . | . . . . . . . Parts Built . | . . . . . . . Authchips . | . . . . . . . Time . | . . . . . . . Total Part Build Rating . | . . . . . . . Parts Repaired . | . . . . . . . Time . | . . . . . . . Parts Recycled . | . . . . . . . Recycled Matter . | . . . . . . . Retrieved Matter . | . . . . . . . Retrieved Components . | . . . . . . . Parts Scanalyzed . | . . . . . . . Part Schematics Acquired . | . . . . . . . Parts Damaged . | . . . . . . . Bothacking | -11 -10 -9 -9 -9 -8 -8 ------------ Run | Yrd Mat Mat Min Exi Min Mat Used RIF Installer . | . . . . . . . Robots Hacked . | . . . . . . . Non-combat . | . . . . . . . Combat . | . . . . . . . Robot Hacks Applied . | . . . . . . . Relay Couplers Released . | . . . . . . . Fabnet Peak Effective % . | . . . . . . . Robots Rewired . | . . . . . . . Allies Hacked . | . . . . . . . Hacks Repelled . | . . . . . . . Allies | -11 -10 -9 -9 -9 -8 -8 -------- Run | Yrd Mat Mat Min Exi Min Mat Total Allies . | . . . . . . . Largest Group . | . . . . . . . Highest-Rated Group . | . . . . . . . Highest-Rated Ally . | . . . . . . . Total Orders . | . . . . . . . Ally Attacks . | . . . . . . . Total Damage . | . . . . . . . Kills . | . . . . . . . Allies Corrupted . | . . . . . . . Allies Melted . | . . . . . . . Intel | -11 -10 -9 -9 -9 -8 -8 ------- Run | Yrd Mat Mat Min Exi Min Mat Active Infowar (turns) . | . . . . . . . Robot Analysis Total . | . . . . . . . Derelict Logs Recovered . | . . . . . . . Drone Launches . | . . . . . . . Drone Recoveries . | . . . . . . . Exploration | -11 -10 -9 -9 -9 -8 -8 ------------- Run | Yrd Mat Mat Min Exi Min Mat Turns Passed 354 | 19 49 50 60 17 74 85 Spaces Moved 582 | 38 86 98 103 33 113 111 Core 434 | 38 86 98 103 33 31 45 Treads . | . . . . . . . Legs . | . . . . . . . Wheels . | . . . . . . . Hover 136 | . . . . . 82 54 Flight 12 | . . . . . . 12 Fastest Speed 35 | 50 50 50 50 50 50 35 Average Speed 52 | 50 50 50 50 50 57 55 Slowest Speed 200 | 50 50 50 50 50 60 200 Overloaded Moves . | . . . . . . . Propulsion Burnouts . | . . . . . . . Robots Hopped . | . . . . . . . Potential Cave-ins . | . . . . . . . Cave-ins Triggered . | . . . . . . . Exploration Rate (%) 18 | 4 20 19 20 8 34 22 Regions Visited 6 Branch Regions 3 Pre-discovered Areas . | . . . . . . . Known Exits Taken . | . . . . . . . Unknown Exits Taken 6 | 1 1 1 1 1 1 . Scrap Searched 1 | . . . . . 1 . Spaces Dug . | . . . . . . . Terrain Destroyed 29 | . . . . . . 29 Melee . | . . . . . . . Projectile . | . . . . . . . AOE 29 | . . . . . . 29 Terrain Rammed . | . . . . . . . Walls Destroyed . | . . . . . . . Machines Disabled . | . . . . . . . Actions | -11 -10 -9 -9 -9 -8 -8 --------- Run | Yrd Mat Mat Min Exi Min Mat Total 609 | 37 88 98 109 32 118 127 Wait 7 | . . . 6 . . 1 Move 576 | 37 85 97 102 32 112 111 Hop . | . . . . . . . Pick Up 2 | . . 1 . . . 1 Fast Attach 7 | . 2 . . . 1 4 Attach 5 | . . . . . 1 4 Detach 3 | . . . . . 2 1 Swap . | . . . . . . . Drop . | . . . . . . . Fire . | . . . . . . . Melee 7 | . 1 . 1 . 2 3 Ram 2 | . . . . . . 2 Kick . | . . . . . . . Crush . | . . . . . . . Escape Stasis . | . . . . . . . Rewire . | . . . . . . . Trap . | . . . . . . . Miscellaneous . | . . . . . . . Route ------- -11/Scrapyard -10/Materials -9/Materials -9/Mines -9/Exiles -8/Mines -8/Materials History --------- Turn | Location | Event 3 | -11/Scrapyard | Discovered new exit (range 16) 20 | -11/Scrapyard | Entered Materials 21 | -10/Materials | Met a group of wandering Federalists 65 | -10/Materials | Discovered new exit (range 7) 69 | -10/Materials | Entered another Materials area 69 | -9/Materials | Evolved 2 slots: Utility x2 112 | -9/Materials | Discovered new exit (range 13) 119 | -9/Materials | Entered Mines 129 | -9/Mines | Assembled infested the area 134 | -9/Mines | Assisted by a Guerilla fighting off Assembled 145 | -9/Mines | Met a Derelict bent on vengeance 177 | -9/Mines | Deemed a non-threat by the Exiles lab entrance 177 | -9/Mines | Discovered new exit (range 5) 179 | -9/Mines | Entered Exiles 189 | -9/Exiles | Discovered new exit (range 14) 196 | -9/Exiles | Entered Mines 265 | -8/Mines | Discovered new exit (range 8) 270 | -8/Mines | Entered Materials 270 | -8/Materials | Evolved 2 slots: Utility x2 318 | -8/Materials | Core integrity fell below 50% 325 | -8/Materials | Core integrity fell below 20% 338 | -8/Materials | Destroyed 7 combat bots 355 | -8/Materials | Destroyed by C-17 Slicer with Blade Saw Last Messages --------------- 00317_ Destroyed Wheel. 00317_ Sml. Matter Pod melted. 00317_ K-01 Serf destroyed. 00317_ S-10 Pest destroyed. 00318_ U-05 Engineer lays Concrete. 00321_ Slug penetrates Wall. 00321_ Atomic Centrifuge disabled. 00322_ U-05 Engineer lays Concrete. 00322_ Acquired Reactive Plating. 00323_ U-05 Engineer lays Concrete. 00326_ Acquired Cesium-ion Thruster. 00327_ Cesium-ion Thruster severed. 00328_ Acquired Cesium-ion Thruster. 00330_ Cesium-ion Thruster destroyed. 00331_ Critical hit (Burn: +37). 00335_ Cesium-ion Thruster severed. 00336_ K-01 Serf collects debris. 00339_ K-01 Serf cleans the Matter Pump. 00343_ K-01 Serf collects debris. 00346_ Reactive Plating severed. Map ----- +----------------------------------------------------+ | | | | | | | | | | | | | | | | | | | ?????????????????????????????????????????????????? | | ?????????????????????????????????????????????????? | | ?????????????????????????????????????????????????? | | ?????????????????????????????????????????????????? | | ?????????????????????????????????????????????????? | | ?????????????????????????????????????????????????? | | ?????????????????????????????????????????????????? | | ?????????????????????????????????????????????????? | | ?????????????????????????????????????????????????? | | ?????????????????????????????????????????????????? | | ?????????????????????????????????????????????????? | | ?????????????????????????????????????????????????? | | ??????????????##?????????????????????????????????? | | ????????????# ! ????????????????????????????????? | | ????????????# ??#####??????????? ????????? | | ?????????????""" ?# ###### T ?????????? | | ?????????????"R # c@ ????????? | | ??????????????"" # ### #######???????????????? | | ???????????????? ## ##?? #?????????????????????? | | ?????????#########/## #????#?????????????????????? | | ?????? #??????????????????????????? | | ?????????????##= #??????????????????????????? | | ??????????????# """ #??????????????????????????? | | ???????######?# """ #??????????????????????????? | | ???????# ! =# """ #??????????????????????????? | | ???????# # #??????????????????????????? | | ???????#""" + !! #??????????????????????????? | | ???????#""" # ##### #??????????????????????????? | | ???????#""" ! # #???# #??????????????????????????? | | ???????# ?# #???# #??????????????????????????? | | ???????######?# #???# #??????????????????????????? | | ??????????????# #???# #??????????????????????????? | | ??????????????# #???# #??????????????????????????? | | ??????????????# #???# #??????????????????????????? | | ??????????????#=#???? ???????????????????????????? | | ??????????????# #???? ???????????????????????????? | | ??????????????# #???? ???????????????????????????? | | ??????????????# #???? ???????????????????????????? | | ??????????????# #???? ???????????????????????????? | | ??????????????# #???? ???????????????????????????? | | ??????????????# #???? ???????????????????????????? | +----------------------------------------------------+ Best States ------------- Heat Dissipation 31 Energy Generation 5 Energy Capacity 100 Matter Stores 300 Matter Capacity 300 Sight Range 16 Terrain Scan Density 10 Armor Coverage 150 Resistance: KI 20 Core Shielding 20 Evasion (%) 53 Item Schematics ----------------- None Robot Schematics ------------------ None Fabricated ------------ Nothing Repaired ---------- Nothing Alien Tech Used ----------------- None Achievements -------------- Quick And Dirty Challenges ------------ None Game ------ Seed GravitonAlloyAutocannon Manual? 0 Play Time 00:05:17 Cumulative 26.7 hours Start 2025.10.11 @ 18:47:46 End 2025.10.11 @ 18:51:42 Sessions 1 Manual Loads 0 Difficulty Rogue Special Mode None Game No. 100 Rogue 100 Adventurer 0 Explorer 0 Win Type - Total 0 Types 0/0/0/0/0/0/0/0/0/0 Lore% 10 Gallery% 29 Achievement% 26 Wizard Run 0 Options --------- Layout 1 ASCII 0 Keyboard 1 Movement Vi Keybinds 0 Fullscreen 1 Font 16/SmallcapsGlow Map View 55x38 Zoom Use 0% Tactical HUD 1 Map Filters NONE Filters NONE Steam 1 RUN: 25548a1a-d94c-473f-96a7-864fe4691a5e